[Event "*** Titled Tuesday Blitz"]
[Site "Chess.com"]
[Date "2021.04.20"]
[Round "6"]
[White "mamonika"]
[Black "Roedor"]
[Result "0-1"]
[WhiteElo "2054"]
[BlackElo "2274"]
[TimeControl "180+1"]
[EndTime "11:05:19 PDT"]
[Termination "Roedor won by resignation"]

1. e4 {[%clk 0:03:00.9]} 1... c5 {[%clk 0:02:59.1]} 2. Nf3 {[%clk 0:03:01]} 2...
d6 {[%clk 0:02:58.3]} 3. d4 {[%clk 0:03:01.2]} 3... cxd4 {[%clk 0:02:59.2]} 4.
Nxd4 {[%clk 0:03:02.1]} 4... Nf6 {[%clk 0:02:59.5]} 5. Nc3 {[%clk 0:03:02.8]}
5... a6 {[%clk 0:03:00]} 6. Be2 {[%clk 0:03:01.1]} 6... e5 {[%clk 0:02:59.6]} 7.
Nb3 {[%clk 0:03:00.2]} 7... Be7 {[%clk 0:03:00]} 8. Be3 {[%clk 0:02:58.8]} 8...
Be6 {[%clk 0:02:59.7]} 9. Bf3 {[%clk 0:02:47.4]} 9... Nbd7 {[%clk 0:02:56.7]}
10. Nd5 {[%clk 0:02:34.7]} 10... Bxd5 {[%clk 0:02:55.2]} 11. exd5 {[%clk
0:02:34.5]} 11... Rc8 {[%clk 0:02:55.8]} 12. O-O {[%clk 0:02:27.9]} 12... O-O
{[%clk 0:02:48.5]} 13. Rc1 {[%clk 0:02:11.8]} 13... b5 {[%clk 0:02:28.4]} 14.
Qd3 {[%clk 0:02:06.1]} 14... Rc4 {[%clk 0:02:22]} 15. Nd2 {[%clk 0:02:05.5]}
15... Ra4 {[%clk 0:02:13.3]} 16. a3 {[%clk 0:01:50.7]} 16... Qc7 {[%clk
0:02:09.5]} 17. c4 {[%clk 0:01:49.3]} 17... Nc5 {[%clk 0:01:44]} 18. Bxc5 {[%clk
0:01:42.2]} 18... Qxc5 {[%clk 0:01:42.2]} 19. b4 {[%clk 0:01:37.1]} 19... bxc4
{[%clk 0:01:28.5]} 20. Rxc4 {[%clk 0:01:35.9]} 20... Qb5 {[%clk 0:01:23.9]} 21.
Bd1 {[%clk 0:01:30.1]} 21... e4 {[%clk 0:00:54.3]} 22. Qd4 {[%clk 0:01:09.5]}
22... Rxa3 {[%clk 0:00:51.3]} 23. Nxe4 {[%clk 0:01:02.8]} 23... Nxd5 {[%clk
0:00:40]} 24. Bf3 {[%clk 0:00:36.8]} 24... f5 {[%clk 0:00:34.6]} 25. Nxd6 {[%clk
0:00:33.4]} 25... Bxd6 {[%clk 0:00:29.4]} 26. Bxd5+ {[%clk 0:00:30.8]} 26... Kh8
{[%clk 0:00:28.6]} 27. Rc6 {[%clk 0:00:28.1]} 27... Bxh2+ {[%clk 0:00:19.3]} 28.
Kxh2 {[%clk 0:00:26.1]} 28... Qxf1 {[%clk 0:00:19.9]} 29. Rc7 {[%clk 0:00:20.5]}
29... Qa1 {[%clk 0:00:20.1]} 30. Qh4 {[%clk 0:00:13.7]} 30... Qe5+ {[%clk
0:00:16.5]} 31. Qg3 {[%clk 0:00:11.1]} 31... Rxg3 {[%clk 0:00:15.7]} 0-1

[Event "*** Titled Tuesday Blitz"]
[Site "Chess.com"]
[Date "2021.04.20"]
[Round "6"]
[White "ChristopherYoo"]
[Black "Bad_left_hook"]
[Result "1-0"]
[WhiteElo "2878"]
[BlackElo "2630"]
[TimeControl "180+1"]
[EndTime "11:05:21 PDT"]
[Termination "ChristopherYoo won by resignation"]

1. d4 {[%clk 0:03:00.9]} 1... Nf6 {[%clk 0:02:58.1]} 2. Nf3 {[%clk 0:03:01]}
2... e6 {[%clk 0:02:58.1]} 3. c4 {[%clk 0:03:01.2]} 3... Bb4+ {[%clk 0:02:57.8]}
4. Bd2 {[%clk 0:03:00.1]} 4... Qe7 {[%clk 0:02:58.1]} 5. g3 {[%clk 0:02:59.7]}
5... O-O {[%clk 0:02:55]} 6. Bg2 {[%clk 0:02:59.1]} 6... Nc6 {[%clk 0:02:54.5]}
7. O-O {[%clk 0:02:55.6]} 7... Bxd2 {[%clk 0:02:53.5]} 8. Qxd2 {[%clk
0:02:49.1]} 8... d6 {[%clk 0:02:51.5]} 9. Nc3 {[%clk 0:02:47.4]} 9... e5 {[%clk
0:02:51.6]} 10. Rac1 {[%clk 0:02:40]} 10... e4 {[%clk 0:02:39]} 11. Ng5 {[%clk
0:02:08.4]} 11... Bf5 {[%clk 0:02:21.2]} 12. d5 {[%clk 0:02:08.1]} 12... Na5
{[%clk 0:01:33.3]} 13. Qf4 {[%clk 0:02:06.3]} 13... Bg6 {[%clk 0:01:28.1]} 14.
Ngxe4 {[%clk 0:02:04.5]} 14... Nxe4 {[%clk 0:01:25.1]} 15. Bxe4 {[%clk
0:02:01.3]} 15... Bxe4 {[%clk 0:01:16.5]} 16. Nxe4 {[%clk 0:02:00.3]} 16... Rfe8
{[%clk 0:01:11.3]} 17. Nc3 {[%clk 0:01:58.3]} 17... Qe5 {[%clk 0:01:07.3]} 18.
Qxe5 {[%clk 0:01:56.2]} 18... Rxe5 {[%clk 0:01:08.2]} 19. b3 {[%clk 0:01:55.7]}
19... b6 {[%clk 0:01:06]} 20. e3 {[%clk 0:01:52.3]} 20... Nb7 {[%clk 0:01:05.7]}
21. Nb5 {[%clk 0:01:49]} 21... Re7 {[%clk 0:01:05.1]} 22. Rfd1 {[%clk
0:01:48.5]} 22... a6 {[%clk 0:01:04.5]} 23. Nd4 {[%clk 0:01:47.3]} 23... Nc5
{[%clk 0:01:01.9]} 24. b4 {[%clk 0:01:46.2]} 24... Ne4 {[%clk 0:01:00.8]} 25. f3
{[%clk 0:01:37]} 25... Nf6 {[%clk 0:00:58.7]} 26. e4 {[%clk 0:01:33.3]} 26...
Nd7 {[%clk 0:00:58.4]} 27. Rc3 {[%clk 0:01:19.7]} 27... Ree8 {[%clk 0:00:46.3]}
28. Ra3 {[%clk 0:01:15]} 28... g6 {[%clk 0:00:41.6]} 29. Kf2 {[%clk 0:01:14.1]}
29... Kg7 {[%clk 0:00:40.5]} 30. Re1 {[%clk 0:00:55.3]} 30... Ne5 {[%clk
0:00:34.8]} 31. Rc1 {[%clk 0:00:54.3]} 31... b5 {[%clk 0:00:28.5]} 32. c5 {[%clk
0:00:52.4]} 32... a5 {[%clk 0:00:17]} 33. Nxb5 {[%clk 0:00:09.5]} 33... axb4
{[%clk 0:00:16]} 34. Rxa8 {[%clk 0:00:10.4]} 34... Rb8 {[%clk 0:00:16.5]} 35.
Rxb8 {[%clk 0:00:09.9]} 1-0

[Event "*** Titled Tuesday Blitz"]
[Site "Chess.com"]
[Date "2021.04.20"]
[Round "6"]
[White "AniJak"]
[Black "BL4D3RUNN3R"]
[Result "1-0"]
[WhiteElo "2280"]
[BlackElo "2106"]
[TimeControl "180+1"]
[EndTime "11:05:22 PDT"]
[Termination "AniJak won on time"]

1. e4 {[%clk 0:03:00.9]} 1... c6 {[%clk 0:02:59.4]} 2. d4 {[%clk 0:03:00.3]}
2... d5 {[%clk 0:02:59.2]} 3. e5 {[%clk 0:03:00.1]} 3... c5 {[%clk 0:02:58.8]}
4. dxc5 {[%clk 0:02:59.8]} 4... e6 {[%clk 0:02:58.3]} 5. a3 {[%clk 0:02:59.4]}
5... Bxc5 {[%clk 0:02:55.3]} 6. b4 {[%clk 0:02:59.8]} 6... Bb6 {[%clk
0:02:54.1]} 7. Nf3 {[%clk 0:02:58.2]} 7... a5 {[%clk 0:02:51.9]} 8. b5 {[%clk
0:02:56.8]} 8... Nd7 {[%clk 0:02:50.3]} 9. Bb2 {[%clk 0:02:55.4]} 9... Ne7
{[%clk 0:02:49]} 10. Nbd2 {[%clk 0:02:54.6]} 10... Ng6 {[%clk 0:02:46.2]} 11.
Bd3 {[%clk 0:02:53.4]} 11... Qc7 {[%clk 0:02:41.8]} 12. Bxg6 {[%clk 0:02:35.7]}
12... hxg6 {[%clk 0:02:36.8]} 13. O-O {[%clk 0:02:36.6]} 13... Nc5 {[%clk
0:01:58.6]} 14. Rb1 {[%clk 0:02:24.1]} 14... Na4 {[%clk 0:01:49.2]} 15. c4
{[%clk 0:02:22.1]} 15... Nxb2 {[%clk 0:01:21.8]} 16. Rxb2 {[%clk 0:02:23]} 16...
dxc4 {[%clk 0:01:18.1]} 17. Rc2 {[%clk 0:02:23.1]} 17... O-O {[%clk 0:00:55.8]}
18. Nxc4 {[%clk 0:02:22.8]} 18... Qd8 {[%clk 0:00:49.8]} 19. Qe2 {[%clk
0:01:53.1]} 19... Bc5 {[%clk 0:00:46.7]} 20. a4 {[%clk 0:01:47.1]} 20... b6
{[%clk 0:00:41.2]} 21. Rd1 {[%clk 0:01:45.9]} 21... Qc7 {[%clk 0:00:38.3]} 22.
Nd6 {[%clk 0:01:38.9]} 22... Bb7 {[%clk 0:00:37]} 23. Ng5 {[%clk 0:01:34.3]}
23... Rad8 {[%clk 0:00:31.8]} 24. Nge4 {[%clk 0:01:26.5]} 24... Bxe4 {[%clk
0:00:20.9]} 25. Qxe4 {[%clk 0:01:23.6]} 25... Qe7 {[%clk 0:00:19.4]} 26. Rcd2
{[%clk 0:01:22.7]} 26... Rd7 {[%clk 0:00:17.7]} 27. h3 {[%clk 0:01:15.3]} 27...
Rfd8 {[%clk 0:00:17.3]} 28. Nc8 {[%clk 0:01:05.7]} 28... Rxc8 {[%clk 0:00:11.8]}
29. Rxd7 {[%clk 0:01:04.8]} 29... Qg5 {[%clk 0:00:11]} 30. Qb7 {[%clk
0:01:00.6]} 30... Rf8 {[%clk 0:00:09]} 31. Qe4 {[%clk 0:00:59]} 31... Qh5 {[%clk
0:00:06.7]} 32. R1d3 {[%clk 0:00:49.9]} 32... Qg5 {[%clk 0:00:06]} 33. Rf3
{[%clk 0:00:44.6]} 33... Qc1+ {[%clk 0:00:05]} 34. Kh2 {[%clk 0:00:44.9]} 34...
Qb2 {[%clk 0:00:02.9]} 35. Qf4 {[%clk 0:00:42.3]} 35... Qb4 {[%clk 0:00:01.1]}
36. Rxf7 {[%clk 0:00:37.7]} 36... Rxf7 {[%clk 0:00:01]} 37. Qxf7+ {[%clk
0:00:37.1]} 1-0

[Event "*** Titled Tuesday Blitz"]
[Site "Chess.com"]
[Date "2021.04.20"]
[Round "6"]
[White "attack2mateU"]
[Black "AldokhinIvan"]
[Result "1-0"]
[WhiteElo "2697"]
[BlackElo "2520"]
[TimeControl "180+1"]
[EndTime "11:05:23 PDT"]
[Termination "attack2mateU won on time"]

1. e4 {[%clk 0:03:00.9]} 1... c5 {[%clk 0:03:00.1]} 2. Nf3 {[%clk 0:03:00.6]}
2... e6 {[%clk 0:03:00.5]} 3. c3 {[%clk 0:03:00.3]} 3... Nf6 {[%clk 0:03:00.4]}
4. e5 {[%clk 0:03:00.2]} 4... Nd5 {[%clk 0:03:00.7]} 5. d4 {[%clk 0:03:00.4]}
5... cxd4 {[%clk 0:03:01.2]} 6. cxd4 {[%clk 0:03:00.8]} 6... d6 {[%clk
0:03:01.7]} 7. Bc4 {[%clk 0:03:00.2]} 7... Bd7 {[%clk 0:02:59.6]} 8. O-O {[%clk
0:02:59.2]} 8... Bc6 {[%clk 0:02:59.6]} 9. Re1 {[%clk 0:02:43.9]} 9... Nd7
{[%clk 0:02:59]} 10. Nbd2 {[%clk 0:02:39.1]} 10... dxe5 {[%clk 0:02:39.2]} 11.
dxe5 {[%clk 0:02:40]} 11... Nc5 {[%clk 0:02:38.5]} 12. Nd4 {[%clk 0:02:37.9]}
12... Be7 {[%clk 0:02:24]} 13. Nxc6 {[%clk 0:02:27.2]} 13... bxc6 {[%clk
0:02:23.8]} 14. Qg4 {[%clk 0:02:26.5]} 14... O-O {[%clk 0:02:04.5]} 15. Nf3
{[%clk 0:02:25.8]} 15... Re8 {[%clk 0:01:50.7]} 16. Bd2 {[%clk 0:02:05.7]} 16...
Qb6 {[%clk 0:01:35]} 17. b3 {[%clk 0:02:02.5]} 17... Rad8 {[%clk 0:01:34]} 18.
h4 {[%clk 0:01:33.8]} 18... Nb4 {[%clk 0:01:24.4]} 19. Bh6 {[%clk 0:01:08.8]}
19... g6 {[%clk 0:01:02.4]} 20. h5 {[%clk 0:00:53.2]} 20... Nc2 {[%clk
0:00:49.4]} 21. hxg6 {[%clk 0:00:53.1]} 21... hxg6 {[%clk 0:00:47]} 22. Ng5
{[%clk 0:00:47]} 22... Nxe1 {[%clk 0:00:18.5]} 23. Rxe1 {[%clk 0:00:41.5]} 23...
Nd3 {[%clk 0:00:18.7]} 24. Bxd3 {[%clk 0:00:19.7]} 24... Rxd3 {[%clk 0:00:18.8]}
25. Nxe6 {[%clk 0:00:19.7]} 25... Qb4 {[%clk 0:00:14]} 26. Re4 {[%clk
0:00:19.4]} 26... Qc3 {[%clk 0:00:06.1]} 27. Nf4 {[%clk 0:00:18]} 27... Rd4
{[%clk 0:00:03.3]} 28. Nxg6 {[%clk 0:00:15.6]} 28... Qa1+ {[%clk 0:00:01]} 29.
Kh2 {[%clk 0:00:15.4]} 29... Kh7 {[%clk 0:00:01.5]} 30. Nxe7 {[%clk 0:00:13.3]}
1-0

[Event "*** Titled Tuesday Blitz"]
[Site "Chess.com"]
[Date "2021.04.20"]
[Round "6"]
[White "MagzyPotato"]
[Black "dhaessel"]
[Result "1/2-1/2"]
[WhiteElo "2366"]
[BlackElo "2083"]
[TimeControl "180+1"]
[EndTime "11:05:23 PDT"]
[Termination "Game drawn by repetition"]

1. d4 {[%clk 0:03:00.9]} 1... Nf6 {[%clk 0:02:57]} 2. c4 {[%clk 0:03:00.1]} 2...
g6 {[%clk 0:02:57.3]} 3. Nc3 {[%clk 0:03:00]} 3... d5 {[%clk 0:02:57.6]} 4. cxd5
{[%clk 0:03:00.4]} 4... Nxd5 {[%clk 0:02:58.4]} 5. e4 {[%clk 0:03:01.3]} 5...
Nxc3 {[%clk 0:02:58.3]} 6. bxc3 {[%clk 0:03:02.2]} 6... Bg7 {[%clk 0:02:58.2]}
7. Nf3 {[%clk 0:03:02.9]} 7... c5 {[%clk 0:02:58.4]} 8. Rb1 {[%clk 0:03:03.2]}
8... O-O {[%clk 0:02:50.9]} 9. Be2 {[%clk 0:03:03.3]} 9... cxd4 {[%clk 0:02:47]}
10. cxd4 {[%clk 0:03:04.2]} 10... Qa5+ {[%clk 0:02:46.1]} 11. Bd2 {[%clk
0:03:04.3]} 11... Qxa2 {[%clk 0:02:45.3]} 12. O-O {[%clk 0:03:04.6]} 12... Bg4
{[%clk 0:02:42.5]} 13. Be3 {[%clk 0:02:49]} 13... Nc6 {[%clk 0:02:38.6]} 14.
Rxb7 {[%clk 0:02:01.8]} 14... Rfd8 {[%clk 0:01:54.5]} 15. d5 {[%clk 0:01:59.7]}
15... Bxf3 {[%clk 0:01:41.9]} 16. Bxf3 {[%clk 0:01:52.1]} 16... e6 {[%clk
0:01:33.7]} 17. dxc6 {[%clk 0:01:47]} 17... Rxd1 {[%clk 0:01:31.9]} 18. Rxd1
{[%clk 0:01:47.9]} 18... Be5 {[%clk 0:01:20.2]} 19. c7 {[%clk 0:01:35.9]} 19...
Kg7 {[%clk 0:01:11.8]} 20. g3 {[%clk 0:01:22.7]} 20... Rc8 {[%clk 0:01:06.4]}
21. Rxa7 {[%clk 0:00:52]} 21... Qc2 {[%clk 0:01:04.4]} 22. Rc1 {[%clk 0:00:52]}
22... Qb2 {[%clk 0:01:00.5]} 23. Rc4 {[%clk 0:00:43]} 23... h5 {[%clk
0:00:53.2]} 24. h4 {[%clk 0:00:41.3]} 24... Qb3 {[%clk 0:00:48.8]} 25. Be2
{[%clk 0:00:19.6]} 25... Bxg3 {[%clk 0:00:43.4]} 26. Rc5 {[%clk 0:00:19.2]}
26... Bd6 {[%clk 0:00:38.2]} 27. Ba6 {[%clk 0:00:17.3]} 27... Bxc5 {[%clk
0:00:35.5]} 28. Bxc5 {[%clk 0:00:18.2]} 28... Qb1+ {[%clk 0:00:33.4]} 29. Kh2
{[%clk 0:00:18.1]} 29... Qc2 {[%clk 0:00:24.1]} 30. Bd4+ {[%clk 0:00:16.6]}
30... Kh7 {[%clk 0:00:20.7]} 31. Bxc8 {[%clk 0:00:16.7]} 31... Qxe4 {[%clk
0:00:19.1]} 32. Be3 {[%clk 0:00:15.3]} 32... Qxh4+ {[%clk 0:00:18.1]} 33. Kg2
{[%clk 0:00:15.4]} 33... Qg4+ {[%clk 0:00:18.1]} 34. Kh1 {[%clk 0:00:15.5]}
34... Qh4+ {[%clk 0:00:16.7]} 35. Kg1 {[%clk 0:00:16.1]} 35... Qg4+ {[%clk
0:00:16.8]} 36. Kf1 {[%clk 0:00:16.7]} 36... Qd1+ {[%clk 0:00:16.7]} 37. Kg2
{[%clk 0:00:17.3]} 37... Qg4+ {[%clk 0:00:16.8]} 38. Kh2 {[%clk 0:00:18]} 38...
Qh4+ {[%clk 0:00:17]} 39. Kg1 {[%clk 0:00:18.6]} 39... Qg4+ {[%clk 0:00:17]} 40.
Kh1 {[%clk 0:00:19.3]} 40... Qh4+ {[%clk 0:00:17.1]} 41. Kg2 {[%clk 0:00:20.2]}
41... Qg4+ {[%clk 0:00:17.3]} 1/2-1/2

[Event "*** Titled Tuesday Blitz"]
[Site "Chess.com"]
[Date "2021.04.20"]
[Round "6"]
[White "RamyresCoelho"]
[Black "vanyakuba"]
[Result "0-1"]
[WhiteElo "2212"]
[BlackElo "2398"]
[TimeControl "180+1"]
[EndTime "11:05:24 PDT"]
[Termination "vanyakuba won by checkmate"]

1. e4 {[%clk 0:03:00.5]} 1... d5 {[%clk 0:03:00]} 2. exd5 {[%clk 0:03:00.4]}
2... Qxd5 {[%clk 0:03:00.9]} 3. Nc3 {[%clk 0:03:00.9]} 3... Qa5 {[%clk
0:03:00.7]} 4. Nf3 {[%clk 0:03:01.4]} 4... Nf6 {[%clk 0:03:00.9]} 5. Bc4 {[%clk
0:03:01.7]} 5... Bg4 {[%clk 0:02:59.2]} 6. h3 {[%clk 0:03:01.3]} 6... Bh5 {[%clk
0:02:59.3]} 7. g4 {[%clk 0:02:59.7]} 7... Bg6 {[%clk 0:02:59.4]} 8. d4 {[%clk
0:02:59.8]} 8... Nc6 {[%clk 0:02:59.1]} 9. Bd2 {[%clk 0:02:59.3]} 9... O-O-O
{[%clk 0:02:56.2]} 10. Nd5 {[%clk 0:02:55.7]} 10... Qa4 {[%clk 0:02:55.9]} 11.
b3 {[%clk 0:02:53.7]} 11... Qa3 {[%clk 0:02:55.6]} 12. Nxf6 {[%clk 0:02:11.5]}
12... gxf6 {[%clk 0:02:54.7]} 13. c3 {[%clk 0:02:05.1]} 13... e5 {[%clk
0:02:34.9]} 14. d5 {[%clk 0:01:58.8]} 14... Ne7 {[%clk 0:02:20]} 15. Bc1 {[%clk
0:01:42.9]} 15... Qd6 {[%clk 0:02:09.6]} 16. O-O {[%clk 0:01:37.8]} 16... Nxd5
{[%clk 0:02:09.3]} 17. Qe1 {[%clk 0:01:31.7]} 17... h5 {[%clk 0:01:47.5]} 18. g5
{[%clk 0:01:26.6]} 18... fxg5 {[%clk 0:01:36.4]} 19. Nxg5 {[%clk 0:01:17]} 19...
Rg8 {[%clk 0:01:12.9]} 20. Kh1 {[%clk 0:01:13.2]} 20... Be7 {[%clk 0:01:09.9]}
21. h4 {[%clk 0:01:05.7]} 21... f6 {[%clk 0:01:01.8]} 22. Ne4 {[%clk 0:00:57.4]}
22... Qd7 {[%clk 0:00:54.1]} 23. Kh2 {[%clk 0:00:51.1]} 23... Bxe4 {[%clk
0:00:38.3]} 24. Qxe4 {[%clk 0:00:50.8]} 24... Rg4 {[%clk 0:00:38.8]} 25. Bxd5
{[%clk 0:00:29.6]} 25... Rxe4 {[%clk 0:00:34.2]} 26. Bxe4 {[%clk 0:00:30.5]}
26... Qg4 {[%clk 0:00:20.1]} 27. Bg2 {[%clk 0:00:27.6]} 27... Qxh4+ {[%clk
0:00:17.2]} 28. Bh3+ {[%clk 0:00:28.5]} 28... Kb8 {[%clk 0:00:17.5]} 29. f4
{[%clk 0:00:27.4]} 29... Rg8 {[%clk 0:00:14.2]} 30. Rf3 {[%clk 0:00:24.1]} 30...
Qe1 {[%clk 0:00:12.9]} 31. Bb2 {[%clk 0:00:20.4]} 31... Qe2+ {[%clk 0:00:11.1]}
32. Bg2 {[%clk 0:00:15.1]} 32... Qxg2# {[%clk 0:00:10.9]} 0-1

[Event "*** Titled Tuesday Blitz"]
[Site "Chess.com"]
[Date "2021.04.20"]
[Round "6"]
[White "Kapibara_Warri0r"]
[Black "Vandros57"]
[Result "0-1"]
[WhiteElo "2208"]
[BlackElo "2181"]
[TimeControl "180+1"]
[EndTime "11:05:25 PDT"]
[Termination "Vandros57 won by resignation"]

1. e4 {[%clk 0:03:00.9]} 1... c5 {[%clk 0:02:55.3]} 2. Nf3 {[%clk 0:03:01.4]}
2... e6 {[%clk 0:02:50.3]} 3. d4 {[%clk 0:03:01.9]} 3... cxd4 {[%clk 0:02:49.5]}
4. Nxd4 {[%clk 0:03:02.8]} 4... Nf6 {[%clk 0:02:48.5]} 5. Nc3 {[%clk 0:03:02.4]}
5... Nc6 {[%clk 0:02:48.2]} 6. Be3 {[%clk 0:03:00.3]} 6... Bb4 {[%clk
0:02:45.8]} 7. Bd3 {[%clk 0:02:52.6]} 7... d5 {[%clk 0:02:43.6]} 8. O-O {[%clk
0:02:29.8]} 8... e5 {[%clk 0:02:32.5]} 9. Nxc6 {[%clk 0:02:27.6]} 9... bxc6
{[%clk 0:02:31.2]} 10. exd5 {[%clk 0:02:27.1]} 10... Bxc3 {[%clk 0:02:21.6]} 11.
bxc3 {[%clk 0:02:26.3]} 11... cxd5 {[%clk 0:02:20.5]} 12. Bc5 {[%clk 0:02:24.6]}
12... Qc7 {[%clk 0:02:11.9]} 13. Bb5+ {[%clk 0:02:18]} 13... Bd7 {[%clk
0:02:08.6]} 14. Bxd7+ {[%clk 0:02:17.9]} 14... Nxd7 {[%clk 0:01:53.8]} 15. Qxd5
{[%clk 0:02:13.8]} 15... Rc8 {[%clk 0:01:47.7]} 16. Bb4 {[%clk 0:02:06.9]} 16...
Qc6 {[%clk 0:01:38.3]} 17. Qd3 {[%clk 0:01:58.8]} 17... a5 {[%clk 0:01:35.3]}
18. Ba3 {[%clk 0:01:46]} 18... Nc5 {[%clk 0:01:33.5]} 19. Qe3 {[%clk 0:01:32.4]}
19... f6 {[%clk 0:01:26.3]} 20. f4 {[%clk 0:01:23.2]} 20... e4 {[%clk
0:01:24.8]} 21. Kh1 {[%clk 0:01:14.8]} 21... O-O {[%clk 0:01:22.1]} 22. Bxc5
{[%clk 0:01:10]} 22... Qxc5 {[%clk 0:01:21.4]} 23. Qxe4 {[%clk 0:01:10.9]} 23...
Rfe8 {[%clk 0:01:14.6]} 24. Qb7 {[%clk 0:01:00.7]} 24... Qxc3 {[%clk 0:01:08.7]}
25. Rad1 {[%clk 0:00:53.8]} 25... Qxc2 {[%clk 0:01:01.3]} 26. Rd7 {[%clk
0:00:51.6]} 26... Qg6 {[%clk 0:00:59.8]} 27. f5 {[%clk 0:00:45.6]} 27... Qg5
{[%clk 0:00:55.7]} 28. Qb3+ {[%clk 0:00:37.4]} 28... Kh8 {[%clk 0:00:52.1]} 29.
Qf7 {[%clk 0:00:37.5]} 29... Re2 {[%clk 0:00:41.1]} 30. g3 {[%clk 0:00:20.2]}
30... Rxh2+ {[%clk 0:00:26.6]} 31. Kxh2 {[%clk 0:00:13.9]} 31... Rc2+ {[%clk
0:00:26]} 32. Rf2 {[%clk 0:00:04.4]} 32... Rxf2+ {[%clk 0:00:19.5]} 0-1

[Event "*** Titled Tuesday Blitz"]
[Site "Chess.com"]
[Date "2021.04.20"]
[Round "6"]
[White "Omk124"]
[Black "AEMEffi"]
[Result "0-1"]
[WhiteElo "2533"]
[BlackElo "2336"]
[TimeControl "180+1"]
[EndTime "11:05:26 PDT"]
[Termination "AEMEffi won by checkmate"]

1. e4 {[%clk 0:03:00.9]} 1... e5 {[%clk 0:02:59.2]} 2. Nf3 {[%clk 0:03:00.5]}
2... Nc6 {[%clk 0:02:58.5]} 3. Bc4 {[%clk 0:03:00.6]} 3... Bc5 {[%clk
0:02:57.3]} 4. c3 {[%clk 0:03:00.6]} 4... Nf6 {[%clk 0:02:53.7]} 5. d3 {[%clk
0:03:00.6]} 5... d6 {[%clk 0:02:49.9]} 6. Nbd2 {[%clk 0:02:58.9]} 6... a5 {[%clk
0:02:42.8]} 7. Bb3 {[%clk 0:02:57.6]} 7... O-O {[%clk 0:02:35.5]} 8. Nf1 {[%clk
0:02:57.1]} 8... d5 {[%clk 0:02:28]} 9. exd5 {[%clk 0:02:56.1]} 9... Nxd5 {[%clk
0:02:28.9]} 10. Ng3 {[%clk 0:02:56.9]} 10... Nf4 {[%clk 0:02:21.3]} 11. Bxf4
{[%clk 0:02:54.4]} 11... exf4 {[%clk 0:02:22.2]} 12. Ne4 {[%clk 0:02:55.3]}
12... Bd6 {[%clk 0:02:20.7]} 13. O-O {[%clk 0:02:55.1]} 13... Bg4 {[%clk
0:02:19.5]} 14. h3 {[%clk 0:02:55]} 14... Bh5 {[%clk 0:02:19.2]} 15. Re1 {[%clk
0:02:40.9]} 15... Ne5 {[%clk 0:02:15.5]} 16. d4 {[%clk 0:01:13.3]} 16... Nxf3+
{[%clk 0:02:00.2]} 17. gxf3 {[%clk 0:01:14.2]} 17... Kh8 {[%clk 0:01:53.8]} 18.
Kh2 {[%clk 0:01:08.4]} 18... Qh4 {[%clk 0:01:30.3]} 19. Rf1 {[%clk 0:00:59.1]}
19... Rae8 {[%clk 0:01:25.1]} 20. Nxd6 {[%clk 0:00:56.5]} 20... cxd6 {[%clk
0:01:24.1]} 21. Bd5 {[%clk 0:00:57.1]} 21... f5 {[%clk 0:01:12.4]} 22. Qd2
{[%clk 0:00:50.2]} 22... Rf6 {[%clk 0:00:48.5]} 23. Rh1 {[%clk 0:00:24.1]} 23...
Rh6 {[%clk 0:00:40]} 24. Kg2 {[%clk 0:00:21.2]} 24... Rg6+ {[%clk 0:00:39.6]}
25. Kf1 {[%clk 0:00:21.7]} 25... Qg5 {[%clk 0:00:39.3]} 26. Be4 {[%clk
0:00:09.1]} 26... Qg2+ {[%clk 0:00:34]} 27. Ke2 {[%clk 0:00:09.4]} 27... Rxe4+
{[%clk 0:00:31.9]} 28. Kd3 {[%clk 0:00:10]} 28... Qxf3+ {[%clk 0:00:29.8]} 29.
Kc4 {[%clk 0:00:09.9]} 29... d5+ {[%clk 0:00:28.3]} 30. Kb3 {[%clk 0:00:09]}
30... Rb6+ {[%clk 0:00:26.4]} 31. Ka3 {[%clk 0:00:09]} 31... Re2 {[%clk
0:00:24.1]} 32. Qd1 {[%clk 0:00:09.2]} 32... Rbxb2 {[%clk 0:00:18.6]} 33. Re1
{[%clk 0:00:07]} 33... Qxc3+ {[%clk 0:00:18.2]} 34. Ka4 {[%clk 0:00:07.4]} 34...
Qb4# {[%clk 0:00:17.8]} 0-1

[Event "*** Titled Tuesday Blitz"]
[Site "Chess.com"]
[Date "2021.04.20"]
[Round "6"]
[White "GM_LOADING"]
[Black "Firouzja2003"]
[Result "0-1"]
[WhiteElo "2548"]
[BlackElo "3128"]
[TimeControl "180+1"]
[EndTime "11:05:28 PDT"]
[Termination "Firouzja2003 won by resignation"]

1. e4 {[%clk 0:03:00.9]} 1... c5 {[%clk 0:02:49.8]} 2. Nf3 {[%clk 0:03:00.6]}
2... d6 {[%clk 0:02:48]} 3. d4 {[%clk 0:03:00.7]} 3... cxd4 {[%clk 0:02:48.9]}
4. Nxd4 {[%clk 0:03:01.4]} 4... Nf6 {[%clk 0:02:49.2]} 5. Nc3 {[%clk 0:03:02]}
5... Nbd7 {[%clk 0:02:36.4]} 6. g3 {[%clk 0:02:30.2]} 6... Nc5 {[%clk
0:02:30.7]} 7. Bg2 {[%clk 0:02:30.5]} 7... Bg4 {[%clk 0:02:30.6]} 8. Qd2 {[%clk
0:02:26.3]} 8... g6 {[%clk 0:02:27.2]} 9. h3 {[%clk 0:02:23.5]} 9... Bd7 {[%clk
0:02:25.8]} 10. Qe2 {[%clk 0:02:23]} 10... Bg7 {[%clk 0:02:23.7]} 11. Be3 {[%clk
0:02:23.3]} 11... O-O {[%clk 0:02:22.5]} 12. O-O {[%clk 0:02:23.2]} 12... a6
{[%clk 0:02:19]} 13. Rfe1 {[%clk 0:02:22.3]} 13... Rc8 {[%clk 0:02:15]} 14. Rad1
{[%clk 0:02:21.4]} 14... b5 {[%clk 0:02:10.5]} 15. Bg5 {[%clk 0:01:54.3]} 15...
h6 {[%clk 0:02:04.8]} 16. Bc1 {[%clk 0:01:50.2]} 16... Qc7 {[%clk 0:01:52.8]}
17. Nd5 {[%clk 0:01:42.3]} 17... Nxd5 {[%clk 0:01:51.3]} 18. exd5 {[%clk
0:01:43.2]} 18... Rfe8 {[%clk 0:01:49.5]} 19. c3 {[%clk 0:01:36.6]} 19... Na4
{[%clk 0:01:48.6]} 20. a3 {[%clk 0:01:24.2]} 20... Nb6 {[%clk 0:01:46.2]} 21.
Bf4 {[%clk 0:01:10.3]} 21... Qc4 {[%clk 0:01:41.1]} 22. Qf3 {[%clk 0:01:00.2]}
22... Rc5 {[%clk 0:01:32.2]} 23. Nc6 {[%clk 0:00:30]} 23... Nxd5 {[%clk
0:00:53.8]} 24. Na5 {[%clk 0:00:29.7]} 24... Qa4 {[%clk 0:00:54]} 25. Rxd5
{[%clk 0:00:29.4]} 25... Rxd5 {[%clk 0:00:54.9]} 26. Qxd5 {[%clk 0:00:27.5]}
26... Qxa5 {[%clk 0:00:55.1]} 27. Qb7 {[%clk 0:00:23.2]} 27... Bc8 {[%clk
0:00:43.8]} 28. Qa7 {[%clk 0:00:08.8]} 28... e5 {[%clk 0:00:31.9]} 29. Be3
{[%clk 0:00:05]} 29... Qd8 {[%clk 0:00:32.3]} 30. Bc6 {[%clk 0:00:03.4]} 30...
Re7 {[%clk 0:00:28.9]} 31. Qb8 {[%clk 0:00:04.1]} 31... Qc7 {[%clk 0:00:26.5]}
32. Qxc7 {[%clk 0:00:04]} 32... Rxc7 {[%clk 0:00:27.4]} 33. Bd5 {[%clk
0:00:04.6]} 33... Be6 {[%clk 0:00:26.9]} 34. Rd1 {[%clk 0:00:05.1]} 34... Bxd5
{[%clk 0:00:26.4]} 35. Rxd5 {[%clk 0:00:06]} 35... Bf8 {[%clk 0:00:27.2]} 36. a4
{[%clk 0:00:04.9]} 36... Rb7 {[%clk 0:00:26]} 37. Rxb5 {[%clk 0:00:04.5]} 37...
axb5 {[%clk 0:00:26.4]} 0-1